bitfinex/quotes_SOLUSD_20260211
["timestamp","ask_amount","ask_price","bid_price","bid_amount"]
[1770827455418,12.80962668,80.22,80.19,12.47038284]
[1770827455741,12.80962668,80.2,80.174,12.4728715]
[1770827455945,12.80962668,80.19,80.174,12.4728715]
[1770827456709,12.80962668,80.19,80.166,39.4]
[1770827456910,12.80962668,80.19,80.167,12.4739606]
[1770827457645,12.46929436,80.197,80.167,12.4739606]
[1770827457813,12.80962668,80.2,80.168,0.67471074]
[1770827458011,0.52426253,80.208,80.168,0.67471074]
[1770827458235,12.80962668,80.21,80.171,0.67471074]
[1770827459609,12.80962668,80.2,80.173,0.67471074]
[1770827459832,12.46742884,80.209,80.173,0.67471074]
[1770827460126,12.80962668,80.21,80.173,0.67471074]
[1770827460524,12.80962668,80.26,80.201,0.67471074]
[1770827460731,12.80962668,80.26,80.221,0.67471074]
[1770827460930,12.80962668,80.26,80.223,0.67471074]
[1770827461315,12.80962668,80.24,80.222,39.48]
[1770827461518,12.80962668,80.25,80.222,39.48]
[1770827461739,12.80962668,80.23,80.201,0.67471074]
[1770827461924,12.80962668,80.23,80.201,40.15471074]
[1770827462126,12.80962668,80.25,80.202,0.67471074]
[1770827462741,12.80962668,80.25,80.211,0.67471074]
[1770827462944,12.80962668,80.24,80.211,0.67471074]
[1770827463128,13.30751531,80.24,80.202,0.67471074]
[1770827463330,12.80962668,80.23,80.202,0.67471074]
[1770827463531,12.80962668,80.24,80.202,0.67471074]
[1770827463834,12.80962668,80.23,80.204,0.67471074]
[1770827464033,12.46276748,80.239,80.204,0.67471074]
[1770827464239,12.80962668,80.23,80.204,0.67471074]
[1770827465941,12.80962668,80.23,80.205,13.14276136]
[1770827466540,12.46367115,80.234,80.205,13.14276136]
[1770827466722,12.46299798,80.238,80.206,0.67471074]
[1770827467043,12.45978146,80.259,80.211,0.67471074]
[1770827467334,12.80962668,80.25,80.211,0.67471074]
[1770827467926,12.80962668,80.24,80.213,0.67471074]
[1770827468120,12.80962668,80.23,80.212,12.46696254]
[1770827468436,12.80962668,80.24,80.213,0.67471074]
[1770827468826,12.80962668,80.22,80.202,12.46851699]
[1770827469018,12.80962668,80.24,80.203,0.67471074]
[1770827469215,12.46121446,80.249,80.203,0.67471074]
[1770827469441,12.80962668,80.24,80.203,0.67471074]
[1770827470123,12.80962668,80.24,80.205,0.67471074]
[1770827471134,12.46276748,80.239,80.205,0.67471074]
[1770827471450,12.80962668,80.24,80.205,0.67471074]
[1770827471651,12.80962668,80.25,80.211,0.67471074]
[1770827472032,12.80962668,80.25,80.201,39.48]
[1770827472033,12.80962668,80.24,80.213,0.67471074]
[1770827472248,12.80962668,80.24,80.212,12.46696254]
[1770827472448,0.4616021,80.249,80.213,0.67471074]
[1770827472649,12.45971529,80.259,80.221,0.67471074]
[1770827472849,12.80962668,80.26,80.223,0.67471074]
[1770827473060,12.80962668,80.26,80.225,0.67471074]
[1770827473449,12.80962668,80.27,80.231,0.67471074]
[1770827473649,12.80962668,80.27,80.212,93.5022191]
[1770827473650,12.45756905,80.273,80.241,0.67471074]
[1770827473968,12.80962668,80.27,80.241,0.67471074]
[1770827474139,12.80962668,80.26,80.232,0.67471074]
[1770827474342,12.80962668,80.27,80.232,0.67471074]
[1770827475239,12.80962668,80.28,80.241,0.67471074]
[1770827475457,12.80962668,80.28,80.243,0.67471074]
[1770827476052,12.80962668,80.28,80.245,0.67471074]
[1770827476762,12.80962668,80.27,80.246,39.7]
[1770827477145,0.44664682,80.279,80.246,39.7]
[1770827477741,0.44664682,80.279,80.244,44.29167897]
[1770827477959,12.80962668,80.27,80.244,44.29167897]
[1770827478156,0.44301474,80.277,80.244,44.29167897]
[1770827478461,12.80962668,80.28,80.245,0.67471074]
[1770827478761,0.43942438,80.279,80.245,0.67471074]
[1770827478937,12.80962668,80.29,80.251,0.67471074]
[1770827479138,13.00962668,80.3,80.261,0.67471074]
[1770827479442,0.43587526,80.279,80.261,39.74]
[1770827479756,12.80962668,80.27,80.244,12.46199092]
[1770827479956,25.26770022,80.27,80.245,39.74]
[1770827480342,12.45666192,80.279,80.245,39.74]
[1770827480564,0.42889884,80.278,80.245,39.74]
[1770827480759,12.80962668,80.27,80.245,39.74]
[1770827481064,12.80962668,80.27,80.243,39.76]
[1770827481644,12.80962668,80.27,80.241,0.64644291]
[1770827482141,12.80962668,80.27,80.242,12.46230153]
[1770827482542,12.88019137,80.269,80.242,12.46230153]
[1770827482956,0.41873184,80.279,80.243,0.64644291]
[1770827483161,12.80962668,80.27,80.243,0.64644291]
[1770827484365,12.4581096,80.269,80.243,0.64644291]
[1770827484554,0.4154204,80.249,80.223,39.78]
[1770827484759,0.4154204,80.249,80.224,12.46509772]
[1770827485541,12.80962668,80.26,80.225,0.64644291]
[1770827486040,0.40891117,80.259,80.225,0.64644291]
[1770827486241,12.80962668,80.25,80.224,12.46509772]
[1770827487570,25.27077172,80.25,80.224,12.46509772]
[1770827490067,25.66405285,80.25,80.224,12.46509772]
[1770827490449,25.27077172,80.25,80.22,39.8]
[1770827490650,12.80962668,80.24,80.22,39.8]
[1770827490858,12.80962668,80.24,80.217,12.4660788]
[1770827491252,12.45986803,80.258,80.221,0.62661636]
[1770827491570,12.80962668,80.24,80.217,43.63154247]
[1770827491749,12.80962668,80.24,80.217,12.4660788]
[1770827491949,12.85019269,80.239,80.213,12.46680712]
[1770827493250,0.3843274,80.229,80.206,39.86]
[1770827493454,0.3843274,80.219,80.171,0.62661636]
[1770827493652,12.80962668,80.19,80.162,0.62661636]
[1770827494463,0.3843274,80.199,80.164,0.62661636]
[1770827494664,12.80962668,80.19,80.164,0.62661636]
[1770827495255,12.80962668,80.18,80.155,0.62661636]
[1770827495454,12.80962668,80.18,80.154,0.62661636]
[1770827495878,0.37567866,80.169,80.127,0.62661636]
[1770827496051,12.80962668,80.16,80.128,39.92]
[1770827496251,12.80962668,80.15,80.121,12.4811223]
[1770827496457,5.36086188,80.171,80.07,49.95572094]
[1770827496458,12.80962668,80.13,80.1,12.4843945]
[1770827497065,12.80962668,80.12,80.1,12.4843945]
[1770827497479,12.80962668,80.13,80.101,0.62661636]
[1770827497777,4.61729252,80.172,80.121,0.62661636]
[1770827498075,5.36086188,80.175,80.1,205.99250933]
[1770827498076,12.80962668,80.18,80.141,0.62661636]
[1770827498277,40.04,80.186,80.143,0.62661636]
[1770827498477,12.80962668,80.17,80.145,0.62661636]
[1770827498879,12.80962668,80.18,80.145,0.62661636]
[1770827499086,0.26732454,80.179,80.145,0.62661636]
[1770827499263,12.80962668,80.17,80.145,0.62661636]
[1770827499657,12.80962668,80.2,80.151,0.62661636]
[1770827499976,12.80962668,80.2,80.161,0.62661636]
[1770827500354,12.80962668,80.21,80.171,0.62661636]
[1770827500561,12.80962668,80.2,80.173,0.62661636]
[1770827500782,12.80962668,80.19,80.165,12.47421823]
[1770827501076,12.80962668,80.18,80.165,12.47421823]
[1770827501977,0.26191382,80.179,80.143,12.47766028]
[1770827502297,12.80962668,80.19,80.15,12.80962668]
[1770827502577,12.80962668,80.19,80.152,43.66703262]
[1770827502876,12.80962668,80.19,80.153,0.62661636]
[1770827503974,12.80962668,80.2,80.153,0.62661636]
[1770827504182,12.80962668,80.2,80.161,0.62661636]
[1770827504875,12.80962668,80.21,80.171,0.62661636]
[1770827505076,12.46587466,80.219,80.181,0.62661636]
[1770827505280,12.80962668,80.21,80.183,0.62661636]
[1770827505586,0.25146031,80.218,80.183,0.62661636]
[1770827505880,0.25146031,80.199,80.164,40.02]
[1770827506081,12.80962668,80.19,80.164,40.02]
[1770827507063,12.80962668,80.19,80.165,12.47427181]
[1770827507369,0.25146031,80.199,80.165,12.47427181]
[1770827507567,12.80962668,80.19,80.165,12.47427181]
[1770827508585,12.80962668,80.2,80.166,0.62661636]
[1770827508973,12.81845263,80.2,80.166,0.62661636]
[1770827510394,17.8286016,80.207,80.164,40.02]
[1770827510395,12.81845263,80.19,80.167,12.4739606]
[1770827510686,12.81845263,80.19,80.164,40.02]
[1770827510687,12.81845263,80.19,80.165,12.47427181]
[1770827510893,12.81845263,80.19,80.166,0.58149061]
[1770827511597,12.4689834,80.199,80.166,0.58149061]
[1770827511792,12.81845263,80.19,80.167,12.4739606]
[1770827512697,12.81845263,80.19,80.159,0.58149061]
[1770827513609,12.81845263,80.19,80.161,0.58149061]
[1770827513788,12.46618547,80.217,80.171,0.58149061]
[1770827514102,39.98,80.22,80.181,0.58149061]
[1770827514277,6.49148729,80.243,80.21,12.81845263]
[1770827514477,4.61729252,80.254,80.212,0.58149061]
[1770827514679,12.81845263,80.22,80.211,40.12]
[1770827514878,12.81845263,80.22,80.199,0.58149061]
[1770827515078,12.81845263,80.21,80.199,0.58149061]
[1770827515282,12.81845263,80.21,80.18,0.58149061]
[1770827515585,12.81845263,80.2,80.177,40.1]
[1770827515895,25.28733921,80.2,80.171,12.47333823]
[1770827516306,12.81845263,80.2,80.171,12.47333823]
[1770827516508,12.4689834,80.199,80.171,12.47333823]
[1770827516695,12.81845263,80.18,80.163,12.47455951]
[1770827517216,12.4689834,80.199,80.157,40.12]
[1770827517217,12.81845263,80.17,80.157,40.12]
[1770827517395,12.81845263,80.18,80.157,40.12]
[1770827517903,12.81845263,80.17,80.157,40.12]
[1770827518204,12.81845263,80.17,80.15,12.47660636]
[1770827518400,12.81845263,80.18,80.151,0.58149061]
[1770827519383,12.81845263,80.17,80.151,0.58149061]
[1770827519584,12.4714715,80.183,80.13,31.78055796]
[1770827519585,12.81845263,80.16,80.13,31.78055796]
[1770827519825,12.81845263,80.16,80.131,12.47956471]
[1770827520305,12.47391722,80.168,80.132,0.58149061]
[1770827520503,12.81845263,80.18,80.141,0.58149061]
[1770827520699,12.81845263,80.18,80.143,0.58149061]
[1770827520891,12.81845263,80.19,80.151,0.58149061]
[1770827521085,12.81845263,80.17,80.151,0.58149061]
[1770827522508,12.81845263,80.17,80.144,12.47747052]
[1770827522720,12.81845263,80.17,80.145,0.58149061]
[1770827523611,12.81845263,80.17,80.144,12.47747052]
[1770827523796,12.81845263,80.17,80.145,0.58149061]
[1770827524106,12.81845263,80.18,80.145,0.58149061]
[1770827524691,12.81845263,80.17,80.146,12.47722905]
[1770827524897,5.36086188,80.191,80.147,0.58149061]
[1770827524898,12.81845263,80.18,80.147,0.58149061]
[1770827525092,12.47209369,80.179,80.147,0.58149061]
[1770827525393,12.81845263,80.17,80.147,0.58149061]
[1770827525608,12.81845263,80.17,80.146,12.47722905]
[1770827526108,12.47209369,80.179,80.147,0.58149061]
[1770827526811,12.81845263,80.17,80.148,12.4769177]
[1770827527009,12.81845263,80.18,80.148,13.05840831]
[1770827527205,12.81845263,80.17,80.139,0.58149061]
[1770827529615,12.81845263,80.15,80.12,0.58149061]
[1770827529792,12.81845263,80.14,80.111,0.58149061]
[1770827529992,12.81845263,80.15,80.111,0.58149061]
[1770827530211,12.81845263,80.16,80.121,0.58149061]
[1770827530407,5.36086188,80.164,80.121,0.58149061]
[1770827530712,12.47520552,80.159,80.123,0.58149061]
[1770827531619,0.19223321,80.158,80.123,0.58149061]
[1770827531823,0.19223321,80.158,80.122,12.48096652]
[1770827531824,0.19223321,80.149,80.117,0.58149061]
[1770827532031,12.81845263,80.15,80.117,0.58149061]
[1770827533241,12.81845263,80.15,80.119,0.58149061]
[1770827535027,12.47531392,80.159,80.121,0.58149061]
[1770827535233,12.81845263,80.16,80.121,0.58149061]
[1770827535530,0.18492636,80.159,80.121,0.58149061]
[1770827535704,5.36086188,80.164,80.121,0.58149061]
[1770827535900,12.47364941,80.169,80.131,0.58149061]
[1770827536103,12.47364941,80.169,80.12,43.68447328]
[1770827536104,13.00160443,80.16,80.126,40.32]
[1770827536328,12.81845263,80.16,80.127,0.58149061]
[1770827537025,12.47520552,80.159,80.128,12.48003194]
[1770827537222,12.81845263,80.15,80.128,12.48003194]
[1770827537727,12.65660314,80.159,80.128,12.48003194]
[1770827538418,0.17966359,80.158,80.129,0.58149061]
[1770827539504,12.99640211,80.14,80.111,0.58149061]
[1770827539708,12.99640211,80.14,80.09,12.81845263]
[1770827539709,12.81845263,80.13,80.093,0.58149061]
[1770827540130,12.81845263,80.12,80.093,0.58149061]
[1770827540300,0.17625506,80.129,80.093,0.58149061]
[1770827540703,0.17625506,80.129,80.094,0.52211936]
[1770827541629,12.65295631,80.128,80.095,12.48517385]
[1770827541815,0.17292437,80.127,80.095,12.48517385]
[1770827542014,0.17128766,80.136,80.101,0.52211936]
[1770827542340,12.81845263,80.14,80.101,0.52211936]
[1770827542632,0.17128766,80.146,80.111,0.52211936]
[1770827542927,12.81845263,80.15,80.111,0.52211936]
[1770827543118,12.81845263,80.16,80.121,0.52211936]
[1770827543320,5.53053164,80.169,80.131,0.52211936]
[1770827543509,5.36086188,80.166,80.133,0.52211936]
[1770827544726,12.81845263,80.18,80.141,0.52211936]
[1770827544906,12.81845263,80.16,80.132,13.00152833]
[1770827545526,12.81845263,80.15,80.124,12.48065498]
[1770827545833,12.81845263,80.14,80.124,12.48065498]
[1770827546025,12.81845263,80.15,80.124,12.48065498]
[1770827546932,12.98183447,80.15,80.124,12.48065498]
[1770827547427,12.81845263,80.14,80.115,12.48205704]
[1770827548211,12.47697641,80.148,80.115,13.04617606]
[1770827548412,12.81845263,80.14,80.115,12.48205704]
[1770827549226,12.81845263,80.15,80.116,0.56411902]
[1770827549425,12.47676203,80.149,80.116,0.56411902]
[1770827549624,12.81845263,80.15,80.118,0.56411902]
[1770827549841,12.81845263,80.16,80.121,0.56411902]
[1770827550431,5.51823975,80.179,80.141,0.56411902]
[1770827550642,12.81845263,80.16,80.137,40.48]
[1770827550820,0.15737787,80.159,80.122,0.56411902]
[1770827551026,12.81845263,80.14,80.121,40.48]
[1770827551222,12.81845263,80.14,80.117,12.48174544]
[1770827551440,0.15591973,80.149,80.117,12.48174544]
[1770827551743,0.15591973,80.149,80.114,0.56411902]
[1770827551744,12.81845263,80.14,80.114,0.56411902]
[1770827552135,5.36086188,80.156,80.12,13.38257165]
[1770827552336,12.81845263,80.15,80.12,0.56411902]
[1770827553024,52.77845263,80.16,80.12,0.56411902]
[1770827553226,12.81845263,80.14,80.12,0.56411902]
[1770827553929,39.96,80.16,80.122,0.56411902]
[1770827553930,52.77845263,80.16,80.122,0.56411902]
[1770827554338,12.81845263,80.17,80.131,0.56411902]
[1770827554821,12.81845263,80.16,80.131,0.56411902]
[1770827555938,12.81845263,80.16,80.133,0.56411902]
[1770827556638,0.15164503,80.168,80.133,0.56411902]
[1770827556823,12.81845263,80.16,80.133,0.56411902]
[1770827557920,12.4739606,80.167,80.135,0.56411902]
[1770827558943,39.98,80.17,80.135,0.56411902]
[1770827559420,12.81845263,80.18,80.134,43.67684128]
[1770827559421,12.4722091,80.179,80.141,0.56411902]
[1770827559620,12.81845263,80.18,80.142,0.56411902]
[1770827560546,12.81845263,80.18,80.143,12.47769611]
[1770827560724,12.81845263,80.18,80.144,0.56411902]
[1770827561638,12.47209369,80.179,80.144,0.56411902]
[1770827562244,0.14094433,80.178,80.143,12.47769611]
[1770827562540,0.14094433,80.178,80.144,0.56411902]
[1770827562745,12.81845263,80.17,80.145,12.47738474]
[1770827563123,12.81845263,80.17,80.13,12.81845263]
[1770827563124,0.13967494,80.149,80.116,0.56411902]
[1770827563325,12.81845263,80.14,80.116,0.56411902]
[1770827564440,40.02,80.148,80.12,12.81845263]
[1770827564638,0.13842014,80.139,80.103,13.04804596]
[1770827564860,12.81845263,80.13,80.103,13.04804596]
[1770827565023,12.61673906,80.139,80.07,12.81845263]
[1770827565024,12.81845263,80.11,80.07,12.81845263]
[1770827565345,12.81845263,80.11,80.071,40.6]
[1770827565649,12.81845263,80.11,80.072,0.56411902]
[1770827566530,12.81845263,80.11,80.074,0.56411902]
[1770827567255,12.48299192,80.109,80.074,0.56411902]
[1770827567550,0.13474154,80.099,80.073,12.48860414]
[1770827567853,12.81845263,80.1,80.074,0.56411902]
[1770827568024,0.1335434,80.138,80.081,0.56411902]
[1770827568223,12.81845263,80.13,80.091,0.56411902]
[1770827568550,12.81845263,80.11,80.088,12.48621031]
[1770827568731,12.81845263,80.11,80.085,40.64]
[1770827568927,12.84998766,80.1,80.067,0.56411902]
[1770827570434,12.84998766,80.1,80.069,0.49675407]
[1770827571145,12.84998766,80.1,80.06,12.84998766]
[1770827571146,12.97887455,80.09,80.064,12.49000351]
[1770827571549,12.84998766,80.08,80.056,12.49125612]
[1770827571731,12.84998766,80.07,80.042,0.49675407]
[1770827572053,0.12888689,80.079,80.042,0.49675407]
[1770827572251,40.04,80.081,80.042,0.49675407]
[1770827572555,12.84998766,80.08,80.053,0.49675407]
[1770827572749,12.97774366,80.08,80.052,12.49188027]
[1770827574044,12.97774366,80.08,80.045,0.49675407]
[1770827574246,12.84998766,80.07,80.045,0.49675407]
[1770827574642,12.84998766,80.06,80.04,3.6897279]
[1770827574838,12.84998766,80.08,80.041,0.49675407]
[1770827575044,99.83976432,80.129,80.04,60.26771435]
[1770827575045,52.86998766,80.09,80.051,0.49675407]
[1770827575355,0.12444066,80.069,80.04,16.18334389]
[1770827575539,12.84998766,80.06,80.04,16.18334389]
[1770827576255,12.84998766,80.07,80.041,0.49675407]
[1770827576650,31.215273,80.089,80.041,0.49675407]
[1770827576651,12.84998766,80.08,80.041,0.49675407]
[1770827577041,12.84998766,80.09,80.051,0.49675407]
[1770827577242,12.84998766,80.1,80.061,0.49675407]
[1770827577560,12.97228108,80.09,80.061,0.49675407]
[1770827578454,12.84998766,80.07,80.051,12.49203632]
[1770827578772,12.84998766,80.07,80.043,12.49328485]
[1770827579439,12.84998766,80.08,80.044,0.49675407]
[1770827579753,31.21175134,80.099,80.043,43.72649699]
[1770827579754,12.84998766,80.09,80.061,0.49675407]
[1770827580452,12.84998766,80.09,80.063,0.49675407]
[1770827581061,12.84998766,80.08,80.062,12.49032]
[1770827581445,12.84998766,80.07,80.045,40.74]
[1770827581755,12.84998766,80.06,80.04,3.6897279]
[1770827581944,12.84998766,80.05,80.04,3.571583]
[1770827582352,12.84998766,80.05,80.011,12.49828148]
[1770827582546,12.84998766,80.05,80.006,0.54385827]
[1770827582547,12.84998766,80.02,80.007,12.49890634]
[1770827583061,12.84998766,80.02,80.006,12.49904729]
[1770827583243,12.84998766,80.02,79.997,0.54385827]
[1770827583444,12.84998766,80.02,80.004,12.49926775]
[1770827583640,12.84998766,80.02,80.0,12.49994153]
[1770827584041,12.84998766,80.02,79.994,12.5008574]
[1770827584042,13.39085802,80.02,79.994,12.5008574]
[1770827584243,12.84998766,80.01,79.994,12.5008574]
[1770827584458,12.84998766,80.01,79.98,0.1]
[1770827584760,12.84998766,79.99,79.98,0.1]
[1770827584966,12.84998766,79.99,79.97,0.2]
[1770827584967,0.44087036,79.989,79.97,0.2]
[1770827585146,39.94,79.994,79.97,0.2]
[1770827585147,12.84998766,79.98,79.97,0.2]
[1770827585661,39.94,79.994,79.97,0.2]
[1770827585859,39.94,79.994,79.971,12.50453289]
[1770827586162,12.84998766,79.98,79.95,0.1]
[1770827586359,12.84998766,79.97,79.951,12.50766094]
[1770827586661,0.43893515,79.98,79.95,0.1]
[1770827586662,12.84998766,79.96,79.95,0.1]
[1770827586970,12.84998766,79.97,79.95,0.1]
[1770827587567,39.94,79.994,79.951,0.49675407]
[1770827587865,12.84998766,79.98,79.951,0.49675407]
[1770827588365,12.84998766,79.99,79.951,0.49675407]
[1770827588660,39.94,79.997,79.961,0.49675407]
[1770827589359,12.84998766,80.0,79.961,0.49675407]
[1770827589543,0.43611491,80.009,79.961,0.49675407]
[1770827589738,12.84998766,79.99,79.961,0.49675407]
[1770827591363,12.84998766,79.99,79.963,0.49675407]
[1770827591865,12.84998766,80.01,79.971,0.49675407]
[1770827592167,12.84998766,80.0,79.971,0.49675407]
[1770827592363,0.43339072,80.009,79.919,50.05019073]
[1770827592364,13.28337838,79.98,79.951,12.50766094]
[1770827592547,12.84998766,79.98,79.952,0.49675407]
[1770827593449,12.84998766,79.98,79.953,12.50734806]
[1770827593650,12.84998766,79.97,79.95,0.1]
[1770827593851,12.84998766,79.97,79.951,12.50766094]
[1770827595356,12.84998766,79.97,79.95,0.1]
[1770827595769,12.84998766,79.96,79.94,12.50936813]
[1770827596768,0.32990228,79.989,79.942,0.49675407]
[1770827596966,12.84998766,79.99,79.951,0.49675407]
[1770827597360,0.32990228,79.999,79.961,0.49675407]
[1770827597557,12.84998766,80.02,79.981,0.49675407]
[1770827597760,0.32905507,80.034,79.99,12.84998766]
[1770827597761,12.84998766,80.03,79.99,12.84998766]
[1770827597973,12.84998766,80.01,79.981,0.49675407]
[1770827598755,43.73414636,80.029,79.958,0.49675407]
[1770827598756,12.84998766,79.99,79.958,0.49675407]
[1770827599974,0.32821759,79.999,79.961,0.49675407]
[1770827600373,39.92,80.008,79.961,0.49675407]
[1770827600559,39.92,80.008,79.971,0.52470855]
[1770827600869,25.67263374,80.02,79.981,0.52470855]
[1770827601266,13.17495042,80.03,79.991,0.52470855]
[1770827601471,12.84998766,80.02,79.991,0.52470855]
[1770827601653,12.84998766,80.01,79.981,0.52470855]
[1770827602152,12.49718813,80.018,79.982,0.52470855]
[1770827602473,12.84998766,80.02,79.991,0.52470855]
[1770827602772,39.9,80.028,79.991,0.52470855]
[1770827602960,12.84998766,80.02,79.991,0.52470855]
[1770827603154,0.32417228,80.029,79.991,0.52470855]
[1770827603355,0.32417228,80.029,79.981,43.76024689]
[1770827603356,12.84998766,80.04,80.001,0.52470855]
[1770827603773,39.88,80.05,79.992,40.92]
[1770827603774,39.88,80.05,80.011,0.52470855]
[1770827604073,12.49547039,80.029,80.0,12.49999901]
[1770827604389,0.32261846,80.028,79.992,0.52470855]
[1770827604674,0.32261846,80.028,79.985,40.92]
[1770827604675,0.32261846,80.019,79.99,12.5015546]
[1770827605281,13.17184257,80.0,79.968,40.92]
[1770827605584,13.17184257,80.0,79.971,12.50453289]
[1770827606082,12.82137183,79.999,79.971,12.50453289]
[1770827606375,12.84998766,79.99,79.971,12.50453289]
[1770827606758,12.84998766,79.99,79.96,31.26528927]
[1770827606759,12.84998766,79.98,79.962,12.50594032]
[1770827606959,12.84998766,79.99,79.962,12.50594032]
[1770827607261,12.84998766,79.99,79.963,0.50167278]
[1770827608282,12.84998766,79.99,79.964,43.76969636]
[1770827608486,12.84998766,79.99,79.965,0.50167278]
[1770827610363,12.84998766,80.0,79.967,0.50167278]
[1770827610682,12.84998766,79.99,79.967,0.50167278]
[1770827610876,0.31745429,80.052,79.971,0.50167278]
[1770827611077,0.31745429,80.052,79.97,12.84998766]
[1770827611078,12.84998766,80.01,79.973,0.50167278]
[1770827611471,12.84998766,79.98,79.958,0.50167278]
[1770827611788,12.84998766,79.97,79.949,0.50167278]
[1770827612362,12.84998766,79.96,79.95,12.50781738]
[1770827612570,12.84998766,79.96,79.941,41.50167278]
[1770827612777,12.84998766,79.95,79.931,13.01246333]
[1770827612970,12.84998766,79.95,79.931,12.51079055]
[1770827613280,12.84998766,79.94,79.923,12.51204284]
[1770827613881,12.84998766,79.94,79.919,13.01433147]
[1770827614076,39.84,79.968,79.919,13.01433147]
[1770827614077,12.84998766,79.93,79.919,12.51265869]
[1770827614389,0.31468552,79.927,79.9,0.2]
[1770827614685,12.51126013,79.928,79.892,12.51676122]
[1770827614686,12.84998766,79.91,79.892,12.51676122]
[1770827615566,12.84998766,79.9,79.887,12.51768122]
[1770827615780,0.31468552,79.919,79.887,12.51768122]
[1770827616185,12.51142922,79.927,79.888,0.50167278]
[1770827616365,0.11334837,79.929,79.888,0.50167278]
[1770827616571,12.84998766,79.91,79.888,0.50167278]
[1770827616771,12.51126013,79.928,79.888,0.50167278]
[1770827616772,12.84998766,79.92,79.888,0.50167278]
[1770827617082,12.84998766,79.91,79.888,0.50167278]
[1770827617988,12.84998766,79.92,79.89,0.50167278]
[1770827618209,12.84998766,79.9,79.879,41.04]
[1770827618362,12.84998766,79.9,79.879,12.51893488]
[1770827618564,12.84998766,79.9,79.88,0.50167278]
[1770827619182,12.84998766,79.92,79.881,0.50167278]
[1770827619385,12.84998766,79.91,79.883,0.50167278]
[1770827619768,12.84998766,79.9,79.883,0.50167278]
[1770827620289,12.84998766,79.9,79.884,12.51815131]
[1770827620693,12.84998766,79.92,79.885,0.50167278]
[1770827620988,12.84998766,79.93,79.891,0.50167278]
[1770827621212,12.84998766,79.93,79.884,43.8135296]
[1770827621213,12.84998766,79.95,79.91,12.84998766]
[1770827621510,12.84998766,79.97,79.931,0.50167278]
[1770827621810,12.84998766,79.97,79.933,0.50167278]
[1770827622181,12.84998766,79.98,79.943,0.50167278]
[1770827622591,12.84998766,79.97,79.944,41.1]
[1770827622797,25.4626605,79.98,79.945,0.50167278]
[1770827623001,12.84998766,80.0,79.961,0.50167278]
[1770827623189,12.84998766,79.99,79.963,0.50167278]
[1770827623590,49.98126637,80.03,79.942,106.32708712]
[1770827623591,12.84998766,80.01,79.971,0.50167278]
[1770827624009,12.84998766,80.0,79.971,0.50167278]
[1770827624306,12.84998766,80.0,79.972,13.00604931]
[1770827624506,12.84998766,80.0,79.964,0.50167278]
[1770827624507,0.10829831,80.0,79.964,0.50167278]
[1770827624706,12.95828597,80.02,79.97,12.84998766]
[1770827624913,12.49703195,80.019,79.981,0.50167278]
[1770827625290,12.84998766,80.01,79.981,0.50167278]
[1770827626206,12.604139,80.019,79.982,12.50281313]
[1770827626405,12.604139,80.019,79.983,0.50167278]
[1770827626605,12.604139,80.019,79.984,41.06]
[1770827626808,13.04998766,80.02,79.985,0.50167278]
[1770827627310,39.72,80.039,79.982,43.75984596]
[1770827627311,12.84998766,80.05,80.001,0.50167278]
[1770827627498,12.49094406,80.058,80.02,12.84998766]
[1770827627690,12.84998766,80.06,80.021,0.50167278]
[1770827628005,0.30652167,80.069,80.022,0.50167278]
[1770827628211,13.15593066,80.08,80.033,0.50167278]
[1770827628401,12.84998766,80.06,80.021,0.50167278]
[1770827628600,12.84998766,80.06,80.023,0.50167278]
[1770827628905,12.84998766,80.08,80.041,0.50167278]
[1770827629108,12.84998766,80.07,80.041,0.50167278]
[1770827629312,12.84998766,80.06,80.025,0.50167278]
[1770827629907,12.84998766,80.05,80.025,0.50167278]
[1770827630108,12.84998766,80.06,80.025,0.50167278]
[1770827630403,12.84998766,80.06,80.018,41.06]
[1770827630404,12.84998766,80.09,80.051,0.48596291]
[1770827630611,12.84998766,80.08,80.051,0.48596291]
[1770827630996,43.7013822,80.089,80.049,41.06]
[1770827630997,12.85869404,80.07,80.049,41.06]
[1770827631192,0.30369406,80.059,80.021,12.49662176]
[1770827631397,12.85869404,80.04,80.015,0.48596291]
[1770827631609,12.85869404,80.04,80.004,0.48596291]
[1770827631904,12.85869404,80.01,79.983,0.48596291]
[1770827632106,12.85869404,80.01,79.948,50.03231436]
[1770827632107,0.30314787,80.02,79.963,0.48596291]
[1770827632300,0.30314787,80.012,79.964,12.50562753]
[1770827632509,0.30314787,80.011,79.964,12.50562753]
[1770827632813,0.30314787,80.009,79.964,12.50562753]
[1770827632993,0.30314787,80.009,79.965,0.48596291]
[1770827633195,0.30314787,80.009,79.935,50.04015515]
[1770827633196,0.30260796,80.005,79.916,0.48596291]
[1770827633515,4.61729252,79.985,79.917,0.48596291]
[1770827633804,0.30260796,79.98,79.921,0.48596291]
[1770827634401,0.30207425,79.978,79.931,0.48596291]
[1770827636491,0.30102515,79.976,79.933,0.48596291]
[1770827636898,12.50359478,79.977,79.933,0.48596291]
[1770827637099,12.80333198,79.986,79.933,0.48596291]